Cogmind - Beta 14 @@@ ROGUE MODE // 2024.09.29 @ 13:58:59 Player: BionicBot Result: Destroyed by AO-37T(R) with Subdweller Laser Performance ------------- Evolutions (0) 0 Regions Visited (2) 400 Robots Destroyed (28) 140 Value Destroyed (789) 789 Prototype IDs (11) 220 Alien Tech Used (0) 0 Bonus (0) 0 TOTAL SCORE: 1549 Bonus ------- None Cogmind --------- Core Integrity 0/250 Matter 68/300 Energy 98/100 System Corruption 0% Temperature Cool (6) Movement Treading (560) Ox4 Location -10/Subcaves Parts ------- > --- POWER (1) -------- (None) > --- PROPULSION (2) --- Spiked Treads > --- UTILITY (2) ------ Huge Storage Unit Gun Armor > --- WEAPON (2+2) ----- Autogun (+) Autogun (+) Subdweller Machine Gun Subdweller Machine Gun > --- INVENTORY (25) --- Light Ion Engine Subdweller Power Source Wheel Compact Wheel Subdweller Monowheel Subdweller Monowheel Subdweller Monowheel Subdweller Monowheel High-capacity Matter Pod (122) Subdweller Optics Subdweller Optics Subdweller Optics Seismic Detector Subdweller Laser Subdweller Laser Subdweller Laser Heavy Assault Rifle Autogun Battle Rifle Grenade Launcher Subdweller Shrapnel Launcher Datajack Multitool Heavy Hammer Peak State ------------ > --- POWER ------------ (None) > --- PROPULSION ------- Light Treads Spiked Treads > --- UTILITY ---------- Huge Storage Unit Gun Armor > --- WEAPON ----------- Autogun Autogun Autogun Autogun > --- INVENTORY -------- Light Ion Engine Subdweller Power Source Wheel Compact Wheel Subdweller Monowheel Subdweller Monowheel Subdweller Monowheel Subdweller Monowheel High-capacity Matter Pod Subdweller Optics Subdweller Optics Subdweller Optics Seismic Detector Subdweller Laser Subdweller Laser Subdweller Laser Heavy Assault Rifle Battle Rifle Subdweller Machine Gun Subdweller Machine Gun Grenade Launcher Subdweller Shrapnel Launcher Datajack Multitool Heavy Hammer [Rating: 25] Favorites ----------- Power Light Ion Engine Engine Light Ion Engine Propulsion Light Treads Treads Light Treads Utility Huge Storage Unit Device Seismic Detector Storage Huge Storage Unit Protection Light Armor Plating Weapon Autogun Energy Gun Medium Laser Ballistic Gun Autogun Launcher Grenade Launcher Impact Weapon Heavy Hammer Build | -11 -10 -10 ------- Run | Yrd Mat Sub Slots Evolved . | . . . Power . | . . . Propulsion . | . . . Utility . | . . . Weapon . | . . . Parts Attached 37 | 7 6 24 Power 2 | 1 . 1 Engine 2 | 1 . 1 Core . | . . . Reactor . | . . . Propulsion 5 | 2 . 3 Treads 5 | 2 . 3 Leg . | . . . Wheel . | . . . Hover . | . . . Flight . | . . . Utility 12 | 2 3 7 Device 4 | 1 . 3 Storage 3 | 1 2 . Processor . | . . . Hackware . | . . . Protection 5 | . 1 4 Artifact . | . . . Weapon 18 | 2 3 13 Energy Gun 2 | 2 . . Energy Cannon . | . . . Ballistic Gun 11 | . 3 8 Ballistic Cannon . | . . . Launcher 1 | . . 1 Special Weapon . | . . . Impact Weapon 4 | . . 4 Slashing Weapon . | . . . Piercing Weapon . | . . . Special Melee Weapon . | . . . Unidentified Prototypes . | . . . Parts Lost 7 | . . 7 Power 2 | . . 2 Propulsion 3 | . . 3 Utility 1 | . . 1 Weapon 1 | . . 1 Highest Loss Streak 3 | . . 3 To Critical Strikes . | . . . Average Slot Usage (%) 94 | . 99 92 Engine 9 | . 14 8 Treads 26 | . 28 25 Device 4 | . 5 4 Storage 13 | . 14 13 Protection 7 | . 8 7 Energy Gun 1 | . 5 . Ballistic Gun 25 | . 22 26 Impact Weapon 4 | . . 5 Peak Build Rating 25 | 7 10 25 Average Rating 13 | 5 9 14 On Entrance 5 | . 7 10 Naked Turns . | . . . Heaviest Build 96 | 13 92 96 Greatest Support 40 | 40 40 40 Greatest Overweight (x) 4 | . 2 4 Average Overweight (x) 1 | . . 2 Largest Inventory Capacity 25 | 8 25 25 Average Capacity 22 | 7 16 25 Most Carried 25 | 2 12 25 Average Carried 16 | 1 8 19 Final Capacity 25 | 8 25 25 Final Carried 24 | 2 12 24 Class Distribution -------------------- 82% | Mutant 17% | Gunner Dominant Class ---------------- Mutant | -10/Materials Mutant | -10/Subcaves Resources | -11 -10 -10 ----------- Run | Yrd Mat Sub Matter Collected 1192 | 270 318 604 Remotely . | . . . Salvage Created 1038 | 97 403 538 Parts 75 | 5 29 41 Haulers Intercepted 1 | . 1 . Recyclers Shooed 1 | 1 . . Parts Field Recycled . | . . . Retrieved Matter . | . . . Parts Self-Destructed 9 | . . 9 Prevented . | . . . Kills | -11 -10 -10 ------- Run | Yrd Mat Sub Combat Hostiles Destroyed 23 | . 11 12 Guns 22 | . 11 11 AOE 1 | . . 1 Classes Destroyed 10 | 2 5 3 Tunneler 1 | 1 . . Hauler 1 | . 1 . Recycler 1 | 1 . . Operator 1 | . 1 . Watcher 1 | . 1 . Swarmer 6 | . 6 . Grunt 7 | . 5 2 Sentry 1 | . . 1 Artisan 2 | . . 2 Subdweller 9 | . . 9 Best Kill Streak 3 | 2 3 2 Combat Bots Only 3 | . 3 2 Max Kills in Single Turn 2 | 1 1 2 Gunslinging . | . . . Exploded 1 | . . 1 Melee . | . . . Uniques/NPCs Destroyed . | . . . Combat | -11 -10 -10 -------- Run | Yrd Mat Sub Hostile Shots Fired 108 | . 42 66 Missed 25 | . 8 17 Damage Taken 1475 | . 361 1114 Core 254 | . 60 194 Absorbed by Shields . | . . . Core Remaining (%) 100 | 100 . . Volleys Fired 87 | 5 32 50 Largest 4 | 2 2 4 Hottest 106 | 100 100 106 Shots Fired 216 | 10 64 142 Gun 214 | 10 64 140 Cannon . | . . . Launcher 2 | . . 2 Special . | . . . Kinetic 191 | . 51 140 Thermal 23 | 10 13 . Explosive 2 | . . 2 Electromagnetic . | . . . Robot Hit Streak 14 | 5 7 14 Robot Miss Streak 5 | 1 5 3 Penetration Max . | . . . Secondary Targets 2 | . 1 1 Max Gunslinging Chain 1 | . 1 1 Shots Hit Robots 152 | 8 35 109 Core Hits 46 | 2 19 25 Critical Kills . | . . . Critical Parts Destroyed 1 | . . 1 Critical Strikes 5 | 2 1 2 Burn 3 | 2 1 . Destroy 2 | . . 2 Melee Attacks 54 | . . 54 Impact 54 | . . 54 Slashing . | . . . Piercing . | . . . Sneak Attacks . | . . . Combat Hostiles . | . . . Follow-up Attacks . | . . . Damage Inflicted 1867 | 99 512 1256 Guns 1792 | 99 512 1181 Cannons . | . . . Explosions 75 | . . 75 Melee . | . . . Ramming . | . . . Kinetic 1592 | . 411 1181 Thermal 200 | 99 101 . Explosive 75 | . . 75 Electromagnetic . | . . . Impact . | . . . Slashing . | . . . Piercing . | . . . Highest Corruption . | . . . Average Corruption . | . . . Corruption Purged . | . . . Corruption Blocked . | . . . Overload Shots . | . . . Overflow Damage . | . . . Projectiles . | . . . Explosions . | . . . Melee . | . . . Knockbacks . | . . . Impact . | . . . Kinetic . | . . . Secondary . | . . . Self-Inflicted Damage . | . . . Shots . | . . . Rammed . | . . . Targets Rammed . | . . . Kicked . | . . . Crushed . | . . . Highest Temperature 195 | 195 192 4 Average Temperature 39 | 99 38 1 Received Heat Transfer 288 | . 108 180 Siege Activations . | . . . Robots Corrupted . | . . . Combat Hostiles . | . . . Parts Fried . | . . . Impact Corruptions . | . . . Robots Melted 1 | 1 . . Combat Hostiles . | . . . Parts Melted 3 | 2 1 . Heat Transferred 814 | 444 370 . Parts Sabotaged . | . . . Parts Stolen . | . . . Parts Stripped . | . . . Power Chain Reactions . | . . . Alert | -11 -10 -10 ------- Run | Yrd Mat Sub Peak Influence 204 | 10 204 . Initial 6 | . 6 . Average 80 | 3 86 . Maximum Alert Level 1 | . 1 . Low Security (%) 97 | 100 96 . Level 1 2 | . 3 . Level 2 . | . . . Level 3 . | . . . Level 4 . | . . . Level 5 . | . . . High Security . | . . . Max Security . | . . . Squads Dispatched 2 | . 2 . Investigation 1 | . 1 . Extermination . | . . . Reinforcement 1 | . 1 . Assault . | . . . Garrison . | . . . Intercept . | . . . Searches Triggered . | . . . Construction Impeded . | . . . Haulers Reinforced . | . . . Active Scanning Responses . | . . . Cargo Convoy Interrupts . | . . . Stealth | -11 -10 -10 --------- Run | Yrd Mat Sub Distress Signals 1 | . 1 . Communications Jammed . | . . . Distress Signals . | . . . Times Spotted 31 | . 18 13 Peak Tracking Total 5 | . 5 2 Tactical Retreats 1 | . 1 . Traps | -11 -10 -10 ------- Run | Yrd Mat Sub Traps Triggered 3 | . 1 2 Indirectly . | . . . Trap Hack Attempts . | . . . Triggered . | . . . Disarmed . | . . . Reprogrammed . | . . . Reused . | . . . Traps Extracted . | . . . Installed . | . . . Triggered . | . . . Machines | -11 -10 -10 ---------- Run | Yrd Mat Sub Machines Disabled 1 | . . 1 Max in Single Turn 1 | . . 1 Machines Repaired . | . . . Machines Dismantled . | . . . Machines Sabotaged . | . . . Overloaded Fab Kills . | . . . Hacking | -11 -10 -10 --------- Run | Yrd Mat Sub Machines Accessed 5 | . 3 2 Terminals 3 | . 3 . Fabricators . | . . . Repair Stations . | . . . Recycling Units . | . . . Scanalyzers . | . . . Garrison Access . | . . . Total Hacks 17 | . 11 6 Successful 12 | . 6 6 Failed 5 | . 5 . Catastrophic 1 | . 1 . Database Lockouts . | . . . Manual 9 | . 9 . Terminals 11 | . 11 . Fabricators . | . . . Repair Stations . | . . . Recycling Units . | . . . Scanalyzers . | . . . Garrison Access . | . . . Terminal Hacks 10 | . 4 6 Record 5 | . . 5 Robot Analysis 3 | . 3 . Emergency Access Points 1 | . 1 . Derelict Proto ID Bank 1 | . . 1 Fabricator Hacks . | . . . Repair Station Hacks . | . . . Recycling Unit Hacks . | . . . Scanalyzer . | . . . Garrison Access Hacks . | . . . Unauthorized Hacks 2 | . 2 . Terminals 2 | . 2 . Botnet 2 | . 2 . Fabricators . | . . . Repair Stations . | . . . Recycling Units . | . . . Scanalyzers . | . . . Garrison Access . | . . . Data Cores Recovered . | . . . Used . | . . . Hacking Detections 2 | . 2 . Full Trace Events . | . . . Feedback Events . | . . . Feedback Blocked . | . . . Robot Schematics Acquired . | . . . Robots Built . | . . . Authchips . | . . . Time . | . . . Total Robot Build Rating . | . . . Part Schematics Acquired . | . . . Parts Built . | . . . Authchips . | . . . Time . | . . . Total Part Build Rating . | . . . Parts Repaired . | . . . Time . | . . . Parts Recycled . | . . . Recycled Matter . | . . . Retrieved Matter . | . . . Retrieved Components . | . . . Parts Scanalyzed . | . . . Part Schematics Acquired . | . . . Parts Damaged . | . . . Bothacking | -11 -10 -10 ------------ Run | Yrd Mat Sub Used RIF Installer . | . . . Robots Hacked . | . . . Non-combat . | . . . Combat . | . . . Robot Hacks Applied . | . . . Relay Couplers Released . | . . . Fabnet Peak Effective % . | . . . Robots Rewired . | . . . Allies Hacked . | . . . Hacks Repelled . | . . . Allies | -11 -10 -10 -------- Run | Yrd Mat Sub Total Allies . | . . . Largest Group . | . . . Highest-Rated Group . | . . . Highest-Rated Ally . | . . . Total Orders . | . . . Ally Attacks . | . . . Total Damage . | . . . Kills . | . . . Allies Corrupted . | . . . Allies Melted . | . . . Intel | -11 -10 -10 ------- Run | Yrd Mat Sub Robot Analysis Total 3 | . 3 . Derelict Logs Recovered 1 | . . 1 Drone Launches . | . . . Drone Recoveries . | . . . Exploration | -11 -10 -10 ------------- Run | Yrd Mat Sub Turns Passed 5378 | 98 1282 3998 Spaces Moved 1753 | 47 590 1116 Core 3 | 3 . . Treads 1750 | 44 590 1116 Legs . | . . . Wheels . | . . . Hover . | . . . Flight . | . . . Fastest Speed 50 | 50 160 320 Average Speed 277 | 152 196 326 Slowest Speed 560 | 160 320 560 Overloaded Moves . | . . . Propulsion Burnouts . | . . . Robots Hopped . | . . . Cave-ins Triggered . | . . . Exploration Rate (%) 51 | 5 77 71 Regions Visited 2 Branch Regions 1 Pre-discovered Areas 1 | . . 1 Known Exits Taken . | . . . Unknown Exits Taken 2 | 1 1 . Scrap Searched 1 | . . 1 Spaces Dug 26 | . . 26 Terrain Destroyed 36 | . . 36 Melee 26 | . . 26 Projectile . | . . . AOE 10 | . . 10 Terrain Rammed . | . . . Walls Destroyed . | . . . Machines Disabled . | . . . Actions | -11 -10 -10 --------- Run | Yrd Mat Sub Total 2005 | 60 658 1287 Wait 32 | . 13 19 Move 1751 | 46 589 1116 Hop . | . . . Pick Up 33 | 2 10 21 Fast Attach 10 | 7 3 . Attach 7 | . . 7 Detach 3 | . 3 . Swap 20 | . 3 17 Drop 8 | . 5 3 Fire 87 | 5 32 50 Melee 54 | . . 54 Ram . | . . . Kick . | . . . Crush . | . . . Escape Stasis . | . . . Rewire . | . . . Trap . | . . . Miscellaneous . | . . . Route ------- -11/Scrapyard -10/Materials (discovered 5 exits: [*Mat x3] / [*Min] / *Sub) -10/Subcaves (discovered 1 exit: [*Mat]) History --------- Turn | Location | Event 26 | -11/Scrapyard | Discovered new exit (range 15) 99 | -11/Scrapyard | Entered Materials 310 | -10/Materials | Build established: Mutant 317 | -10/Materials | Discovered new exit (range 4) 540 | -10/Materials | Discovered new exit (range 12) 762 | -10/Materials | Discovered new exit (range 15) 831 | -10/Materials | Discovered new exit (range 14) 1355 | -10/Materials | Discovered new exit (range 10) 1381 | -10/Materials | Entered Subcaves 1431 | -10/Subcaves | Learned 8 Materials zone layouts 2151 | -10/Subcaves | Ambushed by angry Subdweller bent on revenge 2170 | -10/Subcaves | A swath of the cavern ceiling suddenly collapsed 2494 | -10/Subcaves | Discovered new exit (range 11) 2504 | -10/Subcaves | Learned location of Zion (-7) 2504 | -10/Subcaves | Met a Zionite searching for "candidates" 2823 | -10/Subcaves | Shifting Twisted Machinery released Sub. Laser 2823 | -10/Subcaves | Shifting Twisted Machinery released Sub. Monowheel 3077 | -10/Subcaves | Visited 4L-MR0's lab 3111 | -10/Subcaves | Found Gun Armor 4012 | -10/Subcaves | Visited Clippyterm 4022 | -10/Subcaves | Learned Factory garrison access intel 4080 | -10/Subcaves | Core integrity fell below 50% 4103 | -10/Subcaves | Lost 3 parts (1p1n1u) 4417 | -10/Subcaves | Attached Gun Armor, gained temporary slots: Weapon x2 4576 | -10/Subcaves | Ambushed by angry Subdweller bent on revenge 4698 | -10/Subcaves | Build established: Gunner 4699 | -10/Subcaves | A swath of the cavern ceiling suddenly collapsed 4831 | -10/Subcaves | Curiously followed by a Cobbler waking with a query about "LVR3C" 5128 | -10/Subcaves | Core integrity fell below 20% 5379 | -10/Subcaves | Destroyed by AO-37T(R) with Subdweller Laser Last Messages --------------- 04624_ Acquired Lgt. Ion Engine. 04643_ Subatomizers dissect the Sub. Optics. 04699_ Mak. Shrapnel Gun crushed. A swath of the cavern ceiling suddenly collapses. 04749_ Acquired 10 matter. 04778_ Acquired 11 matter. 04831_ KJ-6GH(O) wakes at your presence. 04831_ KJ-6GH(O): "LVR3C?" 04910_ Dropped Lgt. Treads. 04966_ Searching scrap... 04966_ Found Sub. Beam Cannon. 04966_ Found 53 Matter. 04967_ Acquired 53 matter. 05142_ 0T-6SR(R) destroyed. 05147_ KJ-6GH(O) collects matter. 05187_ KJ-6GH(O) puts together Riot Gun. 05353_ Autogun destroyed. 05355_ Lgt. Treads destroyed. 05370_ AO-37T(R) suffers critical hit (Destroy). 05370_ Destroyed Sub. Monowheel. Map ----- +----------------------------------------------------+ | ????????????????????????## ### #?????? | | ?????????????????????????# #?## #?????? | | ????????????????????????##] ###??## ##?????? | | ????????????????????????# & #????### ##??????? | | ????????????????????????### ##??????# #???????? | | ??????????????????????????## ???????## ##???????? | | ????????????????????????????##?????## #????????? | | ?????????????????????????????????### ##???????? | | ?????????????????????????????????# #???????? | | ?????????????????????????????????# ## ##???????? | | ?????????????????????????????????###?# #???????? | | ??????????????????????????###????????# ##???????? | | ??????????????????????????# ##??????## #????????? | | ????????????????###???????# #??????# ##???????? | | ???????????????## #???##??# ##?????## ##??????? | | ???????????????# #???# ### #??????# ] #??????? | | ???????????????# #????# #??????## #??????? | | ??????????????## #???## #####??????# ##?????? | | ??????????????# ##??# ##??????#### ##????? | | ??????????????### ##?## #??????# #????? | | ????????????????# "#?## ##??????# #????? | | ???????????????## ### #???????# ##????? | | ??????????????## ## #???????# ###?????? | | ??????????????# #; #???????# ##???????? | | ??????????????# ##?????## ##????????? | | ??????????????# @#????## ##????????? | | ??????????????## R##???## #????????? | | ???????????????# #????# #????????? | | ???????????????# ##???# ##????????? | | ???????????????## ##??# ### ##?????????? | | ????????????????## ## "#??# "### #??????????? | | ?????????????????###### #### "##! #??????????? | | ??????????????????????# ## " & &[ ###????????? | | ??????????????????????#" " ""!*= #????????? | | ??????????????????????# "" ##????????? | | ??????????????????????## " "" #?????????? | | ???????????????????????### " ## #?????????? | | ?????????????????????????#"""### ##?????????? | | ?????????????????????????#"""#?# ##??????????? | | ????????????????????????? ""##?## ##???????????? | | ?????????????????????????"""#???## ##????????????? | | ????????????????????????? "?????###?????????????? | | ?????????????????????????"???????????????????????? | | ?????????????????????????????????????????????????? | | ?????????????????????????????????????????????????? | | ?????????????????????????????????????????????????? | | ?????????????????????????????????????????????????? | | ?????????????????????????????????????????????????? | | ?????????????????????????????????????????????????? | | ?????????????????????????????????????????????????? | +----------------------------------------------------+ Best States ------------- Heat Dissipation 25 Energy Generation 10 Energy Capacity 125 Matter Stores 300 Matter Capacity 300 Sight Range 16 Terrain Scan Density 10 Armor Coverage 150 Evasion (%) 40 Recoil Reduction 2 Item Schematics ----------------- None Robot Schematics ------------------ None Fabricated ------------ Nothing Alien Tech Used ----------------- None Achievements -------------- None Challenges ------------ None Game ------ Seed SwordMassPropulsion Manual? 0 Play Time 00:28:07 Cumulative 181.5 hours Start 2024.09.29 @ 13:15:52 End 2024.09.29 @ 13:58:59 Sessions 4 Manual Loads 0 Difficulty Rogue Special Mode None Game No. 144 Rogue 144 Adventurer 0 Explorer 0 Win Type - Total 8 Types 7/0/1/0/0/0/0/0/0 Lore% 49 Gallery% 60 Achievement% 57 Wizard Run 0 Options --------- Layout 0 ASCII 0 Keyboard 1 Movement Numpad Keybinds 0 Fullscreen 2 Font 18/X11 Map View 76x50 Zoom Use 0% Tactical HUD 1 Map Filters NONE Filters NONE Steam 1 RUN: f41b153c-6a09-4ce1-8501-834501559c82